Workbook

Sheet 1
BN1: 0
B2: سيرياتيل | C2: سيرياتيل | E2: سومر | F2: MTN | G2: MTN | H2: فواتير SY | I2: الربح الشهري | J2: برونت | K2: تسديد | L2: سيولة | M2: ديون | O2: فيو | P2: هاي فاي | Q2: ليما | R2: اية | S2: ليزر | T2: يارا | U2: زاد | V2: MTS | W2: لاي نت | X2: واجهة الابراهيم | Y2: امواج | Z2: سما | AE2: =AM9 -> 0
B3: أرصدة البداية | C3: 684 | E3: 428 | F3: 189.622 | G3: 8045 | H3: 100675 | I3: 0 | J3: 715 | K3: 50628 | L3: 29669.5 | M3: 2552437.51 | N3: 0 | O3: 184043.4878 | P3: 0 | Q3: 39750 | R3: 1050 | S3: 203096 | T3: 22240 | U3: -248 | V3: 89600 | W3: 798 | X3: 2150 | Y3: 1500 | Z3: 106453
B4: جديد | C4: =-SUMIF(AA11:AA132,C2,AB11:AB132)/1039.5 -> 0 | E4: =SUMIF(AA11:AA132,E2,AB11:AB132)/1043 -> 0 | H4: =SUMIF(AA11:AA132,"فواتير",AB11:AB132)*-1 -> 0 | J4: =-SUMIF(AA12:AA300,J2,AB12:AB300) -> 0 | K4: =-SUMIF(AA12:AA300,K2,AB12:AB300) -> 0 | N4: =-SUMIF(AA12:AA137,N2,AB12:AB137)/1.02 -> 0 | O4: =-SUMIF(AA12:AA137,O2,AB12:AB137)/1.025 -> 0 | P4: =-SUMIF(AA12:AA300,P2,AB12:AB300) -> 0 | Q4: =-SUMIF(AA12:AA300,Q2,AB12:AB300) -> 0 | R4: =-SUMIF(AA12:AA300,R2,AB12:AB300) -> 0 | S4: =-SUMIF(AA12:AA300,S2,AB12:AB300)/1.025 -> 0 | T4: =-SUMIF(AA12:AA300,T2,AB12:AB300)*1.03 -> 0 | U4: =-SUMIF(AA12:AA300,U2,AB12:AB300) -> 50000 | V4: =-SUMIF(AA12:AA300,V2,AB12:AB300) -> 0 | X4: =-SUMIF(AA12:AA300,X2,AB12:AB300) -> 0 | Y4: =-SUMIF(AA12:AA300,Y2,AB12:AB300) -> 0 | Z4: =-SUMIF(AA12:AA300,Z2,AB12:AB300)/1.05 -> 0 | AE4: =AB133 -> 91197 | AF4: =I7-I3 -> 0
B5: بداية العمل | C5: =C3+C4 -> 684 | E5: 428 | F5: 189.622 | G5: 8045 | H5: 100675 | J5: =J3+J4 -> 715 | K5: =K3+K4 -> 50628 | N5: =N3+N4 -> 0 | O5: 184043.4878 | P5: 0 | Q5: 39750 | R5: 1050 | S5: 203096 | T5: =T4+T3 -> 22240 | U5: =U4+U3 -> 49752 | V5: =V4+V3 -> 89600 | W5: =W3+W4 -> 798 | X5: =X3+X4 -> 2150 | Y5: =Y3+Y4 -> 1500 | Z5: =Z3+Z4 -> 106453 | AE5: =C7 -> 182 | AG5: =J7 -> 715
B6: سحب | C6: =SUM(D11:D106)-SUMIF(F:F,"سعدو",D:D)-SUMIF(F:F,"يعقوب",D:D)-SUMIF(F:F,"مقافيل",D:D)-SUMIF(F:F,"عماد",D:D)-SUMIF(F:F,"كامل",D:D)-SUMIF(F:F,"سكاف",D:D)-SUMIF(F:F,"حازم",D:D) -> 502 | E6: =SUMIF(B:B,AH9,D:D)+SUMIF(L11:L16,AH9,N11:N16)+SUMIF(G:G,AH9,I:I) -> 0 | F6: =SUM(I11:I106)-SUMIF(K:K,"سعدو",I:I)-SUMIF(K:K,"يعقوب",I:I)-SUMIF(K:K,"سكاف",I:I)-SUMIF(K:K,"mtn2",I:I) -> 90.75 | G6: =SUM(N11:N29)-SUMIF(P11:P29,"سعدو",N11:N29)-SUMIF(P11:P29,"شعيب",N11:N29)-SUMIF(P11:P29,"حازم",N11:N29)-SUMIF(P11:P29,"سكاف",N11:N29)-SUMIF(P11:P29,"زاد",N11:N29) -> 0 | H6: =SUM(N33:N86)-SUMIF(P33:P86,"سعدو",N33:N86)-SUMIF(P33:P86,"مالك ادريس",N33:N86)-SUMIF(P33:P86,"صادق",N33:N86)-SUMIF(P33:P86,"حازم",N33:N86)-SUMIF(P33:P86,"عزام",N33:N86)-SUMIF(P33:P86,"سعود",N33:N86)-SUMIF(P33:P86,"علاء الصالح",N33:N86) -> 3000 | J6: =SUMIF(U11:U300,J2,X11:X300)-SUMIF(U11:U300,J2,X11:X300)*0.05 -> 0 | K6: =SUMIF(U11:U300,K2,X11:X300) -> 6114 | N6: =SUMIF(U11:U300,N2,X11:X300)/1.02 -> 0 | O6: =SUMIF(U11:U300,O2,X11:X300)/1.025 -> 18700 | P6: =SUMIF(U11:U300,P2,X11:X300) -> 0 | Q6: =SUMIF(U11:U300,Q2,X11:X300) -> 23700 | R6: =SUMIF(U11:U300,R2,X11:X300) -> 0 | S6: =SUMIF(U11:U300,S2,X11:X300)/1.03 -> 112350 | T6: =SUMIF(U11:U300,T2,X11:X300) -> 2300 | U6: =SUMIF(U11:U300,U2,X11:X300)+SUMIF(P11:P29,AT213,N11:N29) -> 43418 | V6: =SUMIF(U11:U300,V2,X11:X300) -> 15000 | W6: =SUMIF(U11:U300,W2,X11:X300) -> 0 | X6: =SUMIF(U11:U300,X2,X11:X300) -> 0 | Y6: =SUMIF(U11:U300,Y2,X11:X300) -> 0 | Z6: =SUMIF(U11:U300,Z2,X11:X300)/1.05 -> 19600 | AE6: =H7 -> 97675 | AG6: =K7 -> 44514
B7: أرصدة النهاية | C7: =C5-C6 -> 182 | E7: 428 | F7: 98.872 | G7: 8045 | H7: 97675 | I7: =AM9 -> 0 | J7: =J5-J6 -> 715 | K7: =K5-K6 -> 44514 | L7: =AB133 -> 91197 | M7: =SUM(AS3:AS240)+SUM(BI2:BI338) -> 0 | N7: =N5-N6 -> 0 | O7: =O5-O6 -> 165343.4878 | P7: =P5-P6 -> 0 | Q7: =Q5-Q6 -> 16050 | R7: 1050 | S7: 90746 | T7: 19940 | U7: 6334 | V7: 74600 | W7: 798 | X7: 2150 | Y7: 1500 | Z7: 86853 | AE7: 88450 | AG7: =SUMIF(BD:BD,"1045",AU:AU)*5.5+SUMIF(BD:BD,"1050",AU:AU)*10.5+SUMIF(BD:BD,"1055",AU:AU)*15.5+SUMIF(BD:BD,"1043",AU:AU)*3.5+SUMIF(AT:AT,"علي شندية",AU:AU)*4.5+AU5*4.5+SUMIF(BE:BE,"1050",AW:AW)*5+SUMIF(BE:BE,"1055",AW:AW)*10-SUMIF(AT:AT,"علي شندية",AW:AW)-SUMIF(BE:BE,"1043",AW:AW)*2 -> 0
B9: سيرياتيل | G9: MTN | L9: فواتير MTN | R9: DSL | Z9: =SUM(Z11:Z300) -> 12105 | AA9: الصندوق | AE9: ياغي | AF9: 116100 | AG9: صالح جعفر | AH9: 9550 | AI9: لازورد | AJ9: 20250
B10: الاسم | C10: الكود | D10: سحب | E10: الباقي | F10: المصدر | G10: الاسم | H10: الكود | I10: سحب | J10: الباقي | K10: المصدر | L10: الاسم | M10: الكود | N10: سحب | O10: الباقي | P10: المصدر | R10: الرقم | S10: الزبون | T10: الاسم | U10: المصدر | V10: الشركة | W10: السرعة | X10: تكلفة | Y10: مستحق | Z10: ربح | AA10: الاسم | AB10: الدفعة | AC10: سبب الدفعة | AE10: ابو غدير | AF10: 29800 | AG10: محمد جعفر | AH10: 29270 | AI10: العكاري | AJ10: 15673
B11: علي مهنا | C11: 518768 | D11: 10 | E11: =IF(OR(F11="سعدو",F11="يعقوب",F11="مقافيل",F11="سكاف",F11="حازم",F11="عماد",F11="كامل"),C5,C5-D11) -> 674 | G11: حسام داوود | H11: 270116288 | I11: 5 | J11: =IF(OR(K11="سعدو",K11="يعقوب",K11="مقافيل",K11="سكاف",K11="حازم",K11="mtn2",K11="كامل"),F5,F5-I11) -> 184.622 | L11: غصة | M11: 951924535 | N11: 300 | O11: =IF(OR(P11="سعدو",P11="يعقوب",P11="مقافيل",P11="شعيب",P11="حازم",P11="خالد",P11="كامل"),G5,G5-N11) -> 8045 | P11: شعيب | R11: 2759635 | S11: وسيم | T11: حسن سعيدي | U11: تسديد | V11: ارضي | X11: 1575 | Y11: 1600 | Z11: =IF(Y11="","",Y11-X11) -> 25 | AA11: منقول | AB11: =L3 -> 29669.5 | AC11: من مبارح | AE11: محمد فينيكس | AF11: 63950 | AG11: عمران | AH11: 15825 | AI11: ايمو | AJ11: 81973.5
B12: سومر | C12: 75453 | D12: 15 | E12: =IF(OR(D12="",E11=""),"",IF(OR(F12="سعدو",F12="يعقوب",F12="مقافيل",F12="سكاف",F12="حازم",F12="عماد",F12="كامل"),E11,E11-D12)) -> 659 | G12: سومر | H12: 270100205 | I12: 5 | J12: =IF(OR(I12="",J11=""),"",IF(OR(K12="سعدو",K12="يعقوب",K12="مقافيل",K12="سكاف",K12="حازم",K12="mtn2",K12="كامل"),J11,J11-I12)) -> 179.622 | L12: غصة | M12: 969466078 | N12: 1000 | O12: =IF(OR(N12="",O11=""),"",IF(OR(P12="سعدو",P12="شعيب",P12="مقافيل",P12="سكاف",P12="حازم",P12="MTN2",P12="زاد"),O11,O11-N12)) -> 8045 | P12: شعيب | R12: 2764516 | S12: الشعلة | U12: تسديد | V12: ارضي | X12: 1468 | Y12: 1500 | Z12: 32 | AA12: زاد | AB12: -50000 | AE12: هوت لاين | AF12: 38822.5 | AG12: ام حيدر | AH12: 10550 | AI12: وسيم | AJ12: 60005
B13: جورج ضاحي | C13: 173248 | D13: 20 | E13: =IF(OR(D13="",E12=""),"",IF(OR(F13="سعدو",F13="يعقوب",F13="مقافيل",F13="سكاف",F13="حازم",F13="عماد",F13="كامل"),E12,E12-D13)) -> 639 | G13: علي مهنا | H13: 270096841 | I13: 5 | J13: =IF(OR(I13="",J12=""),"",IF(OR(K13="سعدو",K13="يعقوب",K13="مقافيل",K13="سكاف",K13="حازم",K13="mtn2",K13="كامل"),J12,J12-I13)) -> 174.622 | L13: ديل | M13: 966311044 | N13: 4500 | O13: =IF(OR(N13="",O12=""),"",IF(OR(P13="سعدو",P13="شعيب",P13="مقافيل",P13="سكاف",P13="حازم",P13="MTN2",P13="زاد"),O12,O12-N13)) -> 8045 | P13: شعيب | R13: 2788446 | S13: ونوس | T13: باسم سلهب | U13: تسديد | V13: ارضي | W13: 1 | X13: 1468 | Y13: 1500 | Z13: 32 | AA13: زاهر | AB13: 50000 | AE13: عزام | AF13: -31050 | AG13: ابو سلمان | AH13: 36750 | AI13: عقيل | AJ13: 27999.5
B14: سوزان | C14: 195711 | D14: 5 | E14: 634 | G14: سوزان | H14: 270104158 | I14: 5 | J14: 169.622 | L14: =IFERROR(INDEX(#REF!,MATCH(M14,#REF!,0)),"") ->  | R14: 2773183 | S14: ونوس | T14: محمود اشقر | U14: تسديد | V14: ارضي | X14: 1603 | Y14: 1600 | Z14: -3 | AA14: سعد | AB14: 201175 | AE14: حسين | AF14: -10800 | AG14: عمار عبود | AH14: -125 | AI14: الامراء | AJ14: 36750
B15: سومر | C15: 174357 | D15: 5 | E15: 629 | G15: سومر | H15: 270086516 | I15: 5 | J15: 164.622 | L15: =IFERROR(INDEX(#REF!,MATCH(M15,#REF!,0)),"") ->  | R15: 2761295 | S15: صالح فون | T15: شادي سعيدي | U15: ليزر | V15: ليزر | W15: 1 | X15: 2472 | Y15: 2500 | Z15: 28 | AA15: سعدو | AB15: -201175 | AE15: مجد | AF15: -200 | AG15: فايبر | AH15: 4407.75 | AI15: احمد نجم | AJ15: 33540.7
B16: سومر | C16: 167896 | D16: 25 | E16: 604 | G16: هلال | H16: 270057736 | I16: 5 | J16: 159.622 | L16: =IFERROR(INDEX(#REF!,MATCH(M16,#REF!,0)),"") ->  | R16: 2766231 | S16: ابو اسد | T16: رامز قاسم | U16: ليزر | V16: ليزر | W16: 1 | X16: 2472 | Y16: 2600 | Z16: 128 | AA16: جورج ضاحي | AB16: 21032.5 | AE16: ابن عساكر | AF16: 45000 | AG16: علي اسماعيل | AH16: 14328 | AI16: ديل | AJ16: 65792.1
B17: سومر | C17: 202428 | D17: 20 | E17: 584 | G17: صادق | H17: 134347 | I17: 5 | J17: 154.622 | L17: =IFERROR(INDEX(#REF!,MATCH(M17,#REF!,0)),"") ->  | R17: 5991151 | S17: سعد | T17: محمد ديرعطاني | U17: ليزر | V17: ليزر | W17: 1 | X17: 2472 | Y17: 2500 | Z17: 28 | AA17: حبيب | AB17: -4500 | AC17: 2 | AE17: أحمد حمدان | AF17: 22700 | AG17: صالح فون | AH17: 62778 | AI17: اسد | AJ17: 49800
B18: سومر | C18: 194867 | D18: 10 | E18: 574 | G18: علي شندية | H18: 270120020 | I18: 10 | J18: 144.622 | L18: =IFERROR(INDEX(#REF!,MATCH(M18,#REF!,0)),"") ->  | R18: 2776305 | S18: الشاهين | T18: شعبان ديب | U18: ليزر | V18: ليزر | W18: 1 | X18: 2472 | Y18: 2600 | Z18: 128 | AA18: صالح جعفر | AB18: 22575 | AE18: رفعت | AF18: 101763.5 | AG18: الاهرام | AH18: 12900 | AI18: شعيب | AJ18: 68321
B19: ابو علي فؤاد | C19: 527498 | D19: 5 | E19: 569 | G19: سعود | H19: 156890 | I19: 5 | J19: 139.622 | L19: =IFERROR(INDEX(#REF!,MATCH(M19,#REF!,0)),"") ->  | R19: 2773596 | S19: المنارة | T19: يوسف محرز | U19: ليزر | V19: ليزر | W19: 2 | X19: 3502 | Y19: 3700 | Z19: 198 | AA19: ابو حسن جاري | AB19: 15825 | AE19: بايكي | AF19: 52750 | AG19: السلوم | AH19: 55847.5 | AI19: حلاق | AJ19: 22657
B20: سومر | C20: 500777 | D20: 10 | E20: 559 | G20: سومر | H20: 194409 | I20: 5 | J20: 134.622 | L20: =IFERROR(INDEX(#REF!,MATCH(M20,#REF!,0)),"") ->  | R20: 2765986 | S20: فهد | T20: فيصل العلي | U20: ليزر | V20: ليزر | W20: 1 | X20: 2472 | Y20: 2600 | Z20: 128 | AA20: طوني | AB20: 5275 | AE20: سوزان | AF20: 10550 | AG20: صادق | AH20: 70207 | AI20: سلامة | AJ20: -105
B21: صالح جعفر | C21: 139956 | D21: 10 | E21: 549 | G21: محمد جعفر | H21: 270108506 | I21: 10 | J21: 124.622 | L21: =IFERROR(INDEX(#REF!,MATCH(M21,#REF!,0)),"") ->  | R21: 2645070 | S21: ياغي | T21: رامز حديد | U21: ليزر | V21: ليزر | W21: 512 | X21: 1751 | Y21: 1750 | Z21: -1 | AE21: الرحال | AF21: 16194.25 | AG21: جوراني | AH21: 15825 | AI21: عامر حبيب | AJ21: 2200
B22: ديل | C22: 118815 | D22: 10 | E22: 539 | G22: زاهر | H22: 270077554 | I22: 5 | J22: 119.622 | L22: =IFERROR(INDEX(#REF!,MATCH(M22,#REF!,0)),"") ->  | R22: 2164909 | S22: هاني | T22: بشار العبد الله | U22: ليزر | V22: ليزر | W22: 512 | X22: 1751 | Y22: 1750 | Z22: -1 | AE22: خزامى | AF22: 29027.2 | AG22: رامي شعبان | AH22: 57008.5 | AI22: اورانوس | AJ22: -100
B23: البرنس | C23: 507958 | D23: 5 | E23: 534 | G23: الهندسي | H23: 270096138 | I23: 10 | J23: 109.622 | L23: =IFERROR(INDEX(#REF!,MATCH(M23,#REF!,0)),"") ->  | R23: 2164909 | S23: هاني | T23: بشار العبد الله | U23: ليزر | V23: ليزر | W23: 512 | X23: 1030 | Y23: 1050 | Z23: 20 | AE23: نورس | AF23: 21100 | AG23: كنان | AH23: 31650 | AI23: منهل | AJ23: 14025
B24: صادق | C24: 21190 | D24: 10 | E24: 524 | G24: صادق | H24: 270071467 | I24: 5 | J24: 104.622 | L24: =IFERROR(INDEX(#REF!,MATCH(M24,#REF!,0)),"") ->  | R24: 4722178 | S24: ياغي | T24: اسعاف احمد | U24: ليزر | V24: ليزر | W24: 1 | X24: 2472 | Y24: 2500 | Z24: 28 | AE24: عدنان حمدان | AF24: 10550 | AG24: كرم | AH24: 21100 | AI24: ابو حسين | AJ24: 7100
B25: هلال | C25: 153728 | D25: 30 | E25: 494 | G25: هلال | H25: 270057736 | I25: 5 | J25: 99.622 | L25: =IFERROR(INDEX(#REF!,MATCH(M25,#REF!,0)),"") ->  | R25: 2763676 | S25: سعود | T25: عبد الكريم حمود | U25: ليزر | V25: ليزر | W25: 1 | X25: 2472 | Y25: 2600 | Z25: 128 | AE25: علي رمضان | AF25: 8020.5 | AG25: الغانم | AH25: 36216 | AI25: ابو عباس | AJ25: 12025
B26: ابو سلمان | C26: 192553 | D26: 10 | E26: 484 | G26: حبيب | H26: 969936263 | I26: 0.75 | J26: 98.872 | L26: =IFERROR(INDEX(#REF!,MATCH(M26,#REF!,0)),"") ->  | R26: 2775357 | S26: سعود | T26: جبر منصور | U26: ليزر | V26: ليزر | W26: 512 | X26: 1751 | Y26: 1800 | Z26: 49 | AE26: يامن درويش | AF26: 7435 | AG26: ابو ضياء | AH26: 16900 | AI26: ايهم | AJ26: 30634.26
B27: ابو سلمان | C27: 37604 | D27: 10 | E27: 474 | G27: =IFERROR(INDEX(#REF!,MATCH(H27,#REF!,0)),"") ->  | L27: =IFERROR(INDEX(#REF!,MATCH(M27,#REF!,0)),"") ->  | R27: 2642463 | S27: احمد نجم | T27: باسم العلي | U27: ليزر | V27: ليزر | W27: 1 | X27: 2472 | Y27: 2600 | Z27: 128 | AA27: لاي نت | AB27: -19380 | AE27: دربولي | AF27: -114900 | AG27: ابو يوشع | AH27: 11900 | AI27: عمي علي | AJ27: 1405
B28: سومر | C28: 518110 | D28: 10 | E28: 464 | G28: =IFERROR(INDEX(#REF!,MATCH(H28,#REF!,0)),"") ->  | L28: =IFERROR(INDEX(#REF!,MATCH(M28,#REF!,0)),"") ->  | R28: 2711812 | S28: ياغي | T28: فاتن خليل | U28: ليزر | V28: ليزر | W28: 1 | X28: 2472 | Y28: 2500 | Z28: 28 | AA28: غازي رمضان | AB28: -800 | AE28: ابو علي حسين | AF28: -18890 | AG28: البرنس | AH28: 12300 | AI28: ابو رشيد | AJ28: 33748.5
B29: سومر | C29: 189010 | D29: 10 | E29: 454 | G29: =IFERROR(INDEX(#REF!,MATCH(H29,#REF!,0)),"") ->  | L29: =IFERROR(INDEX(#REF!,MATCH(M29,#REF!,0)),"") ->  | R29: 2754283 | S29: صالح فون | T29: باسل الاحمد | U29: ليزر | V29: ليزر | W29: 1 | X29: 2472 | Y29: 2500 | Z29: 28 | AA29: وائل كنعان | AB29: -2700 | AE29: ابو حسن عقيل | AF29: -100 | AG29: ماهر سليمان | AH29: 4075 | AI29: نائل | AJ29: 155601.5
B30: نورس | C30: 173473 | D30: 20 | E30: 434 | G30: =IFERROR(INDEX(#REF!,MATCH(H30,#REF!,0)),"") ->  | R30: 2612836 | S30: ياغي | T30: سها سقرجة | U30: ليزر | V30: ليزر | W30: 512 | X30: 1751 | Y30: 1750 | Z30: -1 | AA30: سمار العيسى | AB30: -2700 | AE30: رامز | AF30: 4841.5 | AG30: الهندسي | AH30: 71605 | AI30: نصر بدور | AJ30: 4654
B31: احمد نجم | C31: 118811 | D31: 15 | E31: 419 | G31: =IFERROR(INDEX(#REF!,MATCH(H31,#REF!,0)),"") ->  | L31: فواتير سيرياتيل | R31: 2765870 | S31: هاني | T31: وسام حموده | U31: ليزر | V31: ليزر | W31: 1 | X31: 2472 | Y31: 2500 | Z31: 28 | AA31: جمال حسين | AB31: 10400 | AE31: علي الإبراهيم | AF31: 6230 | AG31: عدي | AH31: 43115 | AI31: حسن علي | AJ31: 38320
B32: حسام داوود | C32: 199642 | D32: 10 | E32: 409 | G32: =IFERROR(INDEX(#REF!,MATCH(H32,#REF!,0)),"") ->  | L32: الاسم | M32: الرقم | N32: سحب | O32: الباقي | P32: المصدر | R32: 2784072 | S32: مختار | T32: علي حسين | U32: ليزر | V32: ليزر | W32: 1 | X32: 2472 | Y32: 2600 | Z32: 128 | AA32: ختام يوسف | AB32: 2700 | AE32: المخرم | AF32: 29200 | AG32: سبيسيال | AH32: 34850.3 | AI32: وائل | AJ32: 33796
B33: كنان | C33: 176180 | D33: 10 | E33: 399 | G33: =IFERROR(INDEX(#REF!,MATCH(H33,#REF!,0)),"") ->  | L33: الهندسي | M33: 935854942 | N33: 3000 | O33: =IF(OR(P33="سعدو",P33="سكاف",P33="حازم",P33="صادق",P33="مالك ادريس",P33="سعود",P33="علاء الصالح",P33="عزام"),H5,H5-N33) -> 97675 | R33: 2772551 | S33: سيريا فون | T33: عماد دريعي | U33: ليزر | V33: ليزر | W33: 1 | X33: 2472 | Y33: 2600 | Z33: 128 | AA33: مهند علي | AB33: 3400 | AE33: مالك ادريس | AF33: 52500 | AG33: بلوفون | AH33: 21865.5 | AI33: نورس اورانج | AJ33: 20000
B34: غصة | C34: 149823 | D34: 10 | E34: 389 | G34: =IFERROR(INDEX(#REF!,MATCH(H34,#REF!,0)),"") ->  | L34: =IFERROR(INDEX(#REF!,MATCH(M34,#REF!,0)),"") ->  | O34: =IF(OR(N34="",O33=""),"",IF(OR(P34="سعدو",P34="سكاف",P34="حازم",P34="عزام",P34="مالك ادريس",P34="سعود",P34="علاء الصالح"),O33,O33-N34)) ->  | R34: 2456060 | S34: زكوان | T34: اديبة قاعي | U34: ليزر | V34: ليزر | W34: 512 | X34: 1751 | Y34: 1750 | Z34: -1 | AA34: كاتالينا | AB34: 2600 | AE34: طوني | AF34: 5475 | AG34: الرغد | AH34: 16464 | AI34: سامسونغ | AJ34: 6650
B35: ابو اسد | C35: 183865 | D35: 10 | E35: 379 | G35: =IFERROR(INDEX(#REF!,MATCH(H35,#REF!,0)),"") ->  | L35: =IFERROR(INDEX(#REF!,MATCH(M35,#REF!,0)),"") ->  | O35: =IF(OR(N35="",O34=""),"",IF(OR(P35="سعدو",P35="سكاف",P35="حازم",P35="عزام",P35="مالك ادريس",P35="سعود",P35="علاء الصالح"),O34,O34-N35)) ->  | R35: 2644011 | S35: ياغي | T35: نظير نجم | U35: فيو | V35: فيو | W35: 1 | X35: 2460 | Y35: 2500 | Z35: 40 | AA35: بهجت سليمان | AB35: 7800 | AE35: رامي خضور | AF35: 2205 | AG35: حمادي | AH35: 15825 | AI35: الهدبا | AJ35: 14120
B36: عمران | C36: 183485 | D36: 10 | E36: 369 | G36: =IFERROR(INDEX(#REF!,MATCH(H36,#REF!,0)),"") ->  | L36: =IFERROR(INDEX(#REF!,MATCH(M36,#REF!,0)),"") ->  | R36: 2751076 | S36: ونوس | T36: مفيد قاسم | U36: فيو | V36: فيو | W36: 1 | X36: 2460 | Y36: 2500 | Z36: 40 | AE36: فؤاد | AF36: -23075 | AG36: شمس | AH36: 31500 | AI36: تعويض | AJ36: 31750
B37: عدي | C37: 6723 | D37: 7 | E37: 362 | G37: =IFERROR(INDEX(#REF!,MATCH(H37,#REF!,0)),"") ->  | L37: =IFERROR(INDEX(#REF!,MATCH(M37,#REF!,0)),"") ->  | R37: 2775733 | S37: صالح فون | T37: احمد سعيدي | U37: سما | V37: سما | W37: 2 | X37: 3622.5 | Y37: 3650 | Z37: 27.5 | AE37: رقية | AF37: 125557.5 | AG37: مجد معروف | AH37: 18680 | AI37: مها | AJ37: 2100
B38: سعود | C38: 60973 | D38: 10 | E38: 352 | G38: =IFERROR(INDEX(#REF!,MATCH(H38,#REF!,0)),"") ->  | L38: =IFERROR(INDEX(#REF!,MATCH(M38,#REF!,0)),"") ->  | R38: 2636203 | S38: سعد | T38: حسان الاحمد | U38: سما | V38: سما | W38: 1 | X38: 2415 | Y38: 2450 | Z38: 35 | AE38: العيني | AF38: -155 | AG38: ايمن شحود | AH38: 45200 | AI38: اسامة | AJ38: -2775
B39: ابو سلمان | C39: 165411 | D39: 15 | E39: 337 | G39: =IFERROR(INDEX(#REF!,MATCH(H39,#REF!,0)),"") ->  | L39: =IFERROR(INDEX(#REF!,MATCH(M39,#REF!,0)),"") ->  | R39: 2647506 | S39: عزام | T39: ليلى نصرة | U39: ليما | V39: ليما | W39: 1 | X39: 2400 | Y39: 2500 | Z39: 100 | AE39: اصف تامر | AF39: 637 | AG39: بدر شاهين | AH39: 26375 | AI39: المنصور | AJ39: 14025
B40: علي سلوم | C40: 117779 | D40: 10 | E40: 327 | G40: =IFERROR(INDEX(#REF!,MATCH(H40,#REF!,0)),"") ->  | L40: =IFERROR(INDEX(#REF!,MATCH(M40,#REF!,0)),"") ->  | R40: 5992157 | S40: سعد | T40: عبد القادر كومي | U40: ليما | V40: ليما | W40: 2 | X40: 3500 | Y40: 3600 | Z40: 100 | AE40: هلال | AF40: 227621 | AG40: اورانج | AH40: 11450 | AI40: احمد ملحم | AJ40: 2975
B41: ايمو | C41: 194092 | D41: 5 | E41: 322 | G41: =IFERROR(INDEX(#REF!,MATCH(H41,#REF!,0)),"") ->  | L41: =IFERROR(INDEX(#REF!,MATCH(M41,#REF!,0)),"") ->  | R41: 2763962 | S41: فهد المحمد | T41: جاسم حيدر | U41: يارا | V41: يارا | W41: 1 | X41: 2300 | Y41: 2400 | Z41: 100 | AE41: اسعد | AF41: 16652 | AG41: ابو اسد | AH41: 83712.45 | AI41: اكس تل | AJ41: 21254
B42: نائل | C42: 110713 | D42: 10 | E42: 312 | G42: =IFERROR(INDEX(#REF!,MATCH(H42,#REF!,0)),"") ->  | L42: =IFERROR(INDEX(#REF!,MATCH(M42,#REF!,0)),"") ->  | R42: 2615447 | S42: عزام | T42: نادر الجردي | U42: زاهر | V42: سوا | W42: عرض | X42: 2200 | Y42: 2300 | Z42: 100 | AE42: نشات | AF42: 2075 | AG42: علي سلوم | AH42: 14400 | AI42: الشعلة | AJ42: 3850
B43: نورس اورانج | C43: 522176 | D43: 10 | E43: 302 | G43: =IFERROR(INDEX(#REF!,MATCH(H43,#REF!,0)),"") ->  | L43: =IFERROR(INDEX(#REF!,MATCH(M43,#REF!,0)),"") ->  | R43: 2626321 | S43: سعد | T43: انطون العويل | U43: زاهر | V43: الكوم | W43: 512 | X43: 1650 | Y43: 1675 | Z43: 25 | AE43: مهران | AF43: 139475 | AG43: لميس | AH43: 15825 | AI43: ابو علي فؤاد | AJ43: 18990
B44: عدي | C44: 18522 | D44: 20 | E44: 282 | G44: =IFERROR(INDEX(#REF!,MATCH(H44,#REF!,0)),"") ->  | L44: =IFERROR(INDEX(#REF!,MATCH(M44,#REF!,0)),"") ->  | R44: 2626467 | S44: سعد | T44: نجوى العويل | U44: زاهر | V44: الكوم | W44: 512 | X44: 1650 | Y44: 1675 | Z44: 25 | AE44: ياسر | AF44: -613.25 | AG44: الشوق | AH44: 4586 | AI44: الشاهين | AJ44: 81791.5
B45: فهد المحمد | C45: 533362 | D45: 10 | E45: 272 | G45: =IFERROR(INDEX(#REF!,MATCH(H45,#REF!,0)),"") ->  | L45: =IFERROR(INDEX(#REF!,MATCH(M45,#REF!,0)),"") ->  | R45: 2637112 | S45: سعد | T45: كميليا نصري | U45: زاهر | V45: الكوم | W45: 512 | X45: 1650 | Y45: 1675 | Z45: 25 | AE45: درغام | AF45: 86250 | AG45: علي شندية | AH45: 82270.5 | AI45: مؤيد | AJ45: 45599.5
B46: الهندسي | C46: 183864 | D46: 40 | E46: 232 | G46: =IFERROR(INDEX(#REF!,MATCH(H46,#REF!,0)),"") ->  | L46: =IFERROR(INDEX(#REF!,MATCH(M46,#REF!,0)),"") ->  | R46: 2753247 | S46: ديل | T46: باسل جبر | U46: زاهر | V46: ناس | W46: 1 | X46: 2300 | Y46: 2400 | Z46: 100 | AE46: مالك شاهين | AF46: 5250 | AG46: ميلودي | AH46: 21750 | AI46: المنارة | AJ46: 26900
B47: ابو فراس | C47: 56456 | D47: 10 | E47: 222 | G47: =IFERROR(INDEX(#REF!,MATCH(H47,#REF!,0)),"") ->  | L47: =IFERROR(INDEX(#REF!,MATCH(M47,#REF!,0)),"") ->  | R47: 2625523 | S47: سعد | T47: باسم ميهوب | U47: زاهر | V47: ناس | W47: 512 | X47: 1650 | Y47: 1675 | Z47: 25 | AE47: دندشلي | AF47: 21000 | AG47: ميراج | AH47: 10430 | AI47: سليمان عمار | AJ47: 15875
B48: صادق | C48: 69332 | D48: 10 | E48: 212 | G48: =IFERROR(INDEX(#REF!,MATCH(H48,#REF!,0)),"") ->  | L48: =IFERROR(INDEX(#REF!,MATCH(M48,#REF!,0)),"") ->  | R48: 2783261 | S48: الشاهين | T48: مرفت الفندي | U48: زاهر | V48: رن نت | W48: 512 | X48: 1750 | Y48: 1750 | Z48: 0 | AE48: ابو يزن ابراهيم | AF48: 3150 | AG48: ابو فراس | AH48: 10550 | AI48: عمار حسن | AJ48: 13690
B49: مالك ادريس | C49: 115781 | D49: 50 | E49: 212 | F49: سعدو | G49: =IFERROR(INDEX(#REF!,MATCH(H49,#REF!,0)),"") ->  | L49: =IFERROR(INDEX(#REF!,MATCH(M49,#REF!,0)),"") ->  | R49: 2753844 | S49: ديل | T49: علي خليل اسعد | U49: زاهر | V49: لاي نت | W49: 1 | X49: 2300 | Y49: 2400 | Z49: 100 | AE49: مروان | AF49: 105975 | AG49: حسون | AH49: 9850 | AI49: رباب | AJ49: 15825
B50: علي شندية | C50: 142029 | D50: 10 | E50: 212 | F50: سعدو | G50: =IFERROR(INDEX(#REF!,MATCH(H50,#REF!,0)),"") ->  | L50: =IFERROR(INDEX(#REF!,MATCH(M50,#REF!,0)),"") ->  | R50: 2780607 | S50: وسيم | T50: تمام دربولي | U50: زاهر | V50: زاد | W50: 1 | X50: 2300 | Y50: 2350 | Z50: 50 | AE50: درويش | AF50: 11507.5 | AG50: غصة | AH50: 43533 | AI50: فهد المحمد | AJ50: 73012.1
B51: ديل | C51: 506437 | D51: 10 | E51: 212 | F51: سعدو | G51: =IFERROR(INDEX(#REF!,MATCH(H51,#REF!,0)),"") ->  | L51: =IFERROR(INDEX(#REF!,MATCH(M51,#REF!,0)),"") ->  | R51: 2788703 | S51: وسيم | T51: وسيم العوض | U51: زاهر | V51: زاد | W51: 1 | X51: 2300 | Y51: 2350 | Z51: 50 | AE51: نادي | AF51: 124049.25 | AG51: ونوس | AH51: 24415 | AI51: الحسن | AJ51: 11350
B52: علي شندية | C52: 531080 | D52: 5 | E52: 212 | F52: سعدو | G52: =IFERROR(INDEX(#REF!,MATCH(H52,#REF!,0)),"") ->  | L52: =IFERROR(INDEX(#REF!,MATCH(M52,#REF!,0)),"") ->  | R52: 2770750 | S52: الاهرام | T52: ملكي احمد | U52: زاهر | V52: سوا | W52: 1 | X52: 2400 | Y52: 2500 | Z52: 100 | AE52: عدنان | AF52: 16050 | AG52: فهد | AH52: 59200 | AI52: شبروني | AJ52: 3605
B53: سومر | C53: 115557 | D53: 10 | E53: 212 | F53: سعدو | G53: =IFERROR(INDEX(#REF!,MATCH(H53,#REF!,0)),"") ->  | L53: =IFERROR(INDEX(#REF!,MATCH(M53,#REF!,0)),"") ->  | R53: 2752616 | S53: مهند | T53: محمد اسماعيل | U53: زاهر | V53: اية | W53: 1 | X53: 2400 | Y53: 2500 | Z53: 100 | AE53: مازن شاهين | AF53: 30602 | AG53: محرز | AH53: 6950 | AI53: فرق | AJ53: 4819.05
B54: غصة | C54: 30800 | D54: 15 | E54: 212 | F54: سعدو | G54: =IFERROR(INDEX(#REF!,MATCH(H54,#REF!,0)),"") ->  | L54: =IFERROR(INDEX(#REF!,MATCH(M54,#REF!,0)),"") ->  | R54: 2772533 | S54: احمد نجم | T54: سليمان العليان | U54: زاهر | V54: اية | W54: 1 | X54: 2400 | Y54: 2500 | Z54: 100 | AE54: ثائر خضر | AF54: 89950 | AG54: سعود | AH54: 65183.5 | AI54: بوابات | AJ54: 87800
B55: سبيسيال | C55: 180558 | D55: 5 | E55: 212 | F55: سعدو | G55: =IFERROR(INDEX(#REF!,MATCH(H55,#REF!,0)),"") ->  | L55: =IFERROR(INDEX(#REF!,MATCH(M55,#REF!,0)),"") ->  | R55: 2762812 | S55: صالح فون | T55: سلمان شاهين | U55: زاهر | V55: رن نت | W55: 1 | X55: 2375 | Y55: 2450 | Z55: 75 | AE55: وسوف | AF55: 15000 | AG55: حسام داوود | AH55: 15775 | AI55: دين | AJ55: -675000
B56: محمد جعفر | C56: 109340 | D56: 20 | E56: 212 | F56: سعدو | G56: =IFERROR(INDEX(#REF!,MATCH(H56,#REF!,0)),"") ->  | L56: =IFERROR(INDEX(#REF!,MATCH(M56,#REF!,0)),"") ->  | R56: 2757640 | S56: اسد | T56: هلا حمادة | U56: زاهر | V56: تكامل | W56: 1 | X56: 2200 | Y56: 2300 | Z56: 100 | AE56: الشيخ | AF56: 15825 | AG56: علي مهنا | AH56: 36925 | AI56: نداف | AJ56: 142815
B57: علي شندية | C57: 526294 | D57: 10 | E57: 212 | F57: سعدو | G57: =IFERROR(INDEX(#REF!,MATCH(H57,#REF!,0)),"") ->  | L57: =IFERROR(INDEX(#REF!,MATCH(M57,#REF!,0)),"") ->  | R57: 2789530 | S57: صالح فون | T57: فادي سعيدي | U57: زاهر | V57: تكامل | W57: 512 | X57: 1600 | Y57: 1625 | Z57: 25 | AE57: ام طارق | AF57: 26300 | AG57: مختار | AH57: 42461 | AI57: سومر دين | AJ57: -289
B58: سومر | C58: 159603 | D58: 15 | E58: 197 | G58: =IFERROR(INDEX(#REF!,MATCH(H58,#REF!,0)),"") ->  | L58: =IFERROR(INDEX(#REF!,MATCH(M58,#REF!,0)),"") ->  | R58: 2460067 | S58: زكوان | T58: مها برغوث | U58: زاهر | V58: تكامل | W58: 1 | X58: 2200 | Y58: 2200 | Z58: 0 | AE58: ابو حسن جاري | AF58: -15825 | AG58: جولي | AH58: 2700 | AI58: سيريا فون | AJ58: 7266.5
B59: هلال | C59: 153728 | D59: 15 | E59: 182 | G59: =IFERROR(INDEX(#REF!,MATCH(H59,#REF!,0)),"") ->  | L59: =IFERROR(INDEX(#REF!,MATCH(M59,#REF!,0)),"") ->  | R59: 2766443 | S59: ياغي | T59: سمير العلي | U59: زاهر | V59: لاي نت | W59: 1 | X59: 2300 | Y59: 2350 | Z59: 50 | AE59: الدبس | AF59: 4900 | AG59: عهد | AH59: 68575 | AI59: هاني | AJ59: 150700.5
B60: =IFERROR(INDEX(#REF!,MATCH(C60,#REF!,0)),"") ->  | G60: =IFERROR(INDEX(#REF!,MATCH(H60,#REF!,0)),"") ->  | L60: =IFERROR(INDEX(#REF!,MATCH(M60,#REF!,0)),"") ->  | R60: 2756265 | S60: ايهم | T60: علي صوفان | U60: زاهر | V60: ناس | W60: 2 | X60: 3400 | Y60: 3500 | Z60: 100
B61: =IFERROR(INDEX(#REF!,MATCH(C61,#REF!,0)),"") ->  | G61: =IFERROR(INDEX(#REF!,MATCH(H61,#REF!,0)),"") ->  | L61: =IFERROR(INDEX(#REF!,MATCH(M61,#REF!,0)),"") ->  | R61: 2771631 | S61: صالح فون | T61: رفيف شرارة | U61: زاهر | V61: ناس | W61: 4 | X61: 5700 | Y61: 5800 | Z61: 100
B62: =IFERROR(INDEX(#REF!,MATCH(C62,#REF!,0)),"") ->  | G62: =IFERROR(INDEX(#REF!,MATCH(H62,#REF!,0)),"") ->  | L62: =IFERROR(INDEX(#REF!,MATCH(M62,#REF!,0)),"") ->  | R62: 2750181 | S62: اسد | T62: لينا المحمد | U62: زاهر | V62: اية | W62: 1 | X62: 2400 | Y62: 2500 | Z62: 100
B63: =IFERROR(INDEX(#REF!,MATCH(C63,#REF!,0)),"") ->  | G63: =IFERROR(INDEX(#REF!,MATCH(H63,#REF!,0)),"") ->  | L63: =IFERROR(INDEX(#REF!,MATCH(M63,#REF!,0)),"") ->  | R63: 2781470 | S63: ابو اسد | T63: لؤي علوش | U63: زاهر | V63: اية | W63: 2 | X63: 3500 | Y63: 3600 | Z63: 100
B64: =IFERROR(INDEX(#REF!,MATCH(C64,#REF!,0)),"") ->  | G64: =IFERROR(INDEX(#REF!,MATCH(H64,#REF!,0)),"") ->  | L64: =IFERROR(INDEX(#REF!,MATCH(M64,#REF!,0)),"") ->  | R64: 2783662 | S64: عدي | T64: يوسف ديب | U64: زاهر | V64: ناس | W64: 1 | X64: 2300 | Y64: 2400 | Z64: 100
B65: =IFERROR(INDEX(#REF!,MATCH(C65,#REF!,0)),"") ->  | G65: =IFERROR(INDEX(#REF!,MATCH(H65,#REF!,0)),"") ->  | L65: =IFERROR(INDEX(#REF!,MATCH(M65,#REF!,0)),"") ->  | R65: 2757876 | S65: عدي | T65: ابراهيم محفوض | U65: زاهر | V65: ناس | W65: 1 | X65: 2300 | Y65: 2400 | Z65: 100
B66: =IFERROR(INDEX(#REF!,MATCH(C66,#REF!,0)),"") ->  | G66: =IFERROR(INDEX(#REF!,MATCH(H66,#REF!,0)),"") ->  | L66: =IFERROR(INDEX(#REF!,MATCH(M66,#REF!,0)),"") ->  | R66: 2764862 | S66: سعد | T66: علي رمضان | U66: زاهر | V66: ناس | W66: 512 | X66: 1650 | Y66: 1675 | Z66: 25
B67: =IFERROR(INDEX(#REF!,MATCH(C67,#REF!,0)),"") ->  | G67: =IFERROR(INDEX(#REF!,MATCH(H67,#REF!,0)),"") ->  | L67: =IFERROR(INDEX(#REF!,MATCH(M67,#REF!,0)),"") ->  | R67: 2765555 | S67: البرنس | T67: عبد الحميد زينة | U67: زاهر | V67: جمعية | W67: 512 | X67: 1650 | Y67: 1750 | Z67: 100
B68: =IFERROR(INDEX(#REF!,MATCH(C68,#REF!,0)),"") ->  | G68: =IFERROR(INDEX(#REF!,MATCH(H68,#REF!,0)),"") ->  | L68: =IFERROR(INDEX(#REF!,MATCH(M68,#REF!,0)),"") ->  | R68: 2756889 | S68: هاني | T68: محمود حمود | U68: زاهر | V68: ناس | W68: 2 | X68: 3400 | Y68: 3500 | Z68: 100
B69: =IFERROR(INDEX(#REF!,MATCH(C69,#REF!,0)),"") ->  | G69: =IFERROR(INDEX(#REF!,MATCH(H69,#REF!,0)),"") ->  | L69: =IFERROR(INDEX(#REF!,MATCH(M69,#REF!,0)),"") ->  | R69: 2788048 | S69: عدي | T69: رامي السليمان | U69: زاهر | V69: جمعية | W69: 512 | X69: 1650 | Y69: 1750 | Z69: 100
B70: =IFERROR(INDEX(#REF!,MATCH(C70,#REF!,0)),"") ->  | G70: =IFERROR(INDEX(#REF!,MATCH(H70,#REF!,0)),"") ->  | L70: =IFERROR(INDEX(#REF!,MATCH(M70,#REF!,0)),"") ->  | R70: 4571236 | S70: مختار | T70: صالح مشعل | U70: زاهر | V70: هاي فاي | W70: 1 | X70: 2300 | Y70: 2400 | Z70: 100
B71: =IFERROR(INDEX(#REF!,MATCH(C71,#REF!,0)),"") ->  | G71: =IFERROR(INDEX(#REF!,MATCH(H71,#REF!,0)),"") ->  | L71: =IFERROR(INDEX(#REF!,MATCH(M71,#REF!,0)),"") ->  | R71: 2765884 | S71: سعد | T71: هناء محفوض | U71: زاهر | V71: رن نت | W71: 2 | X71: 3500 | Y71: 3600 | Z71: 100
B72: =IFERROR(INDEX(#REF!,MATCH(C72,#REF!,0)),"") ->  | G72: =IFERROR(INDEX(#REF!,MATCH(H72,#REF!,0)),"") ->  | L72: =IFERROR(INDEX(#REF!,MATCH(M72,#REF!,0)),"") ->  | R72: 2641242 | S72: فهد المحمد | T72: سومر صبره | U72: زاهر | V72: ناس | W72: 512 | X72: 1650 | Y72: 1750 | Z72: 100
B73: =IFERROR(INDEX(#REF!,MATCH(C73,#REF!,0)),"") ->  | G73: =IFERROR(INDEX(#REF!,MATCH(H73,#REF!,0)),"") ->  | L73: =IFERROR(INDEX(#REF!,MATCH(M73,#REF!,0)),"") ->  | R73: 2636880 | S73: فهد المحمد | T73: سومر صبره | U73: زاهر | V73: اية | W73: 512 | X73: 1700 | Y73: 1750 | Z73: 50
B74: =IFERROR(INDEX(#REF!,MATCH(C74,#REF!,0)),"") ->  | G74: =IFERROR(INDEX(#REF!,MATCH(H74,#REF!,0)),"") ->  | L74: =IFERROR(INDEX(#REF!,MATCH(M74,#REF!,0)),"") ->  | R74: 2122930 | S74: ياغي | T74: ايمان الحجة | U74: زاهر | V74: سوا | W74: 1 | X74: 2400 | Y74: 2450 | Z74: 50
B75: =IFERROR(INDEX(#REF!,MATCH(C75,#REF!,0)),"") ->  | G75: =IFERROR(INDEX(#REF!,MATCH(H75,#REF!,0)),"") ->  | L75: =IFERROR(INDEX(#REF!,MATCH(M75,#REF!,0)),"") ->  | R75: 2762192 | S75: ايمو | T75: وصال حسن | U75: زاهر | V75: سوا | W75: عرض | X75: 2200 | Y75: 2300 | Z75: 100
B76: =IFERROR(INDEX(#REF!,MATCH(C76,#REF!,0)),"") ->  | G76: =IFERROR(INDEX(#REF!,MATCH(H76,#REF!,0)),"") ->  | L76: =IFERROR(INDEX(#REF!,MATCH(M76,#REF!,0)),"") ->  | R76: 2785195 | S76: فهد المحمد | T76: محمد حامد | U76: زاهر | V76: سوا | W76: عرض | X76: 2200 | Y76: 2300 | Z76: =IF(Y76="","",Y76-X76) -> 100
B77: =IFERROR(INDEX(#REF!,MATCH(C77,#REF!,0)),"") ->  | E77: =IF(OR(D77="",E76=""),"",IF(OR(F77="سعدو",F77="يعقوب",F77="مقافيل",F77="سكاف",F77="حازم",F77="عماد",F77="كامل"),E76,E76-D77)) ->  | G77: =IFERROR(INDEX(#REF!,MATCH(H77,#REF!,0)),"") ->  | J77: =IF(OR(I77="",J76=""),"",IF(OR(K77="سعدو",K77="يعقوب",K77="مقافيل",K77="سكاف",K77="حازم",K77="mtn2",K77="كامل"),J76,J76-I77)) ->  | L77: =IFERROR(INDEX(#REF!,MATCH(M77,#REF!,0)),"") ->  | R77: 2759789 | S77: ابو اسد | T77: يوسف العلي | U77: زاهر | V77: اية | W77: 2 | X77: 3500 | Y77: 3600 | Z77: 100
B78: =IFERROR(INDEX(#REF!,MATCH(C78,#REF!,0)),"") ->  | G78: =IFERROR(INDEX(#REF!,MATCH(H78,#REF!,0)),"") ->  | L78: =IFERROR(INDEX(#REF!,MATCH(M78,#REF!,0)),"") ->  | R78: 2783747 | S78: السلوم | T78: علي الكسيح | U78: زاهر | V78: برونت | W78: 512 | X78: 1600 | Y78: 1700 | Z78: 100
B79: =IFERROR(INDEX(#REF!,MATCH(C79,#REF!,0)),"") ->  | G79: =IFERROR(INDEX(#REF!,MATCH(H79,#REF!,0)),"") ->  | L79: =IFERROR(INDEX(#REF!,MATCH(M79,#REF!,0)),"") ->  | R79: 2762995 | S79: السلوم | T79: يحيى عمران | U79: زاهر | V79: رن نت | W79: 512 | X79: 1750 | Y79: 1750 | Z79: 0
B80: =IFERROR(INDEX(#REF!,MATCH(C80,#REF!,0)),"") ->  | G80: =IFERROR(INDEX(#REF!,MATCH(H80,#REF!,0)),"") ->  | L80: =IFERROR(INDEX(#REF!,MATCH(M80,#REF!,0)),"") ->  | R80: 2763129 | S80: السلوم | T80: جوليانا خشيفة | U80: زاهر | V80: سوا | W80: عرض | X80: 2200 | Y80: 2300 | Z80: 100
B81: =IFERROR(INDEX(#REF!,MATCH(C81,#REF!,0)),"") ->  | G81: =IFERROR(INDEX(#REF!,MATCH(H81,#REF!,0)),"") ->  | L81: =IFERROR(INDEX(#REF!,MATCH(M81,#REF!,0)),"") ->  | R81: 2621568 | S81: ابو غدير | T81: تميم حديد | U81: زاهر | V81: ناس | W81: 512 | X81: 1650 | Y81: 1750 | Z81: 100
B82: =IFERROR(INDEX(#REF!,MATCH(C82,#REF!,0)),"") ->  | G82: =IFERROR(INDEX(#REF!,MATCH(H82,#REF!,0)),"") ->  | L82: =IFERROR(INDEX(#REF!,MATCH(M82,#REF!,0)),"") ->  | R82: 2759573 | S82: ونوس | T82: حمدو الطرشة | U82: زاهر | V82: سوا | W82: 512 | X82: 1650 | Y82: 1750 | Z82: 100
B83: =IFERROR(INDEX(#REF!,MATCH(C83,#REF!,0)),"") ->  | G83: =IFERROR(INDEX(#REF!,MATCH(H83,#REF!,0)),"") ->  | L83: =IFERROR(INDEX(#REF!,MATCH(M83,#REF!,0)),"") ->  | R83: 2784630 | S83: هاني | T83: جهاد ضاحي | U83: زاهر | V83: تكامل | W83: 1 | X83: 2200 | Y83: 2250 | Z83: 50
B84: =IFERROR(INDEX(#REF!,MATCH(C84,#REF!,0)),"") ->  | G84: =IFERROR(INDEX(#REF!,MATCH(H84,#REF!,0)),"") ->  | L84: =IFERROR(INDEX(#REF!,MATCH(M84,#REF!,0)),"") ->  | R84: 2621821 | S84: ابو غدير | T84: محي الدين حرفوش | U84: زاهر | V84: تكامل | W84: 1 | X84: 2200 | Y84: 2300 | Z84: 100
B85: =IFERROR(INDEX(#REF!,MATCH(C85,#REF!,0)),"") ->  | G85: =IFERROR(INDEX(#REF!,MATCH(H85,#REF!,0)),"") ->  | L85: =IFERROR(INDEX(#REF!,MATCH(M85,#REF!,0)),"") ->  | R85: 2783601 | S85: علي شندية | T85: رمضان فتنة | U85: زاهر | V85: ناس | W85: 1 | X85: 2300 | Y85: 2400 | Z85: 100
B86: =IFERROR(INDEX(#REF!,MATCH(C86,#REF!,0)),"") ->  | G86: =IFERROR(INDEX(#REF!,MATCH(H86,#REF!,0)),"") ->  | L86: =IFERROR(INDEX(#REF!,MATCH(M86,#REF!,0)),"") ->  | R86: 2788316 | S86: سعد | T86: وئام الجوراني | U86: زاهر | V86: دنيا | W86: 1 | X86: 2300 | Y86: 2350 | Z86: 50
B87: =IFERROR(INDEX(#REF!,MATCH(C87,#REF!,0)),"") ->  | G87: =IFERROR(INDEX(#REF!,MATCH(H87,#REF!,0)),"") ->  | R87: 2758056 | S87: بلوفون | T87: محمد فندي | U87: زاهر | V87: جمعية | W87: 1 | X87: 2400 | Y87: 2500 | Z87: 100
B88: =IFERROR(INDEX(#REF!,MATCH(C88,#REF!,0)),"") ->  | G88: =IFERROR(INDEX(#REF!,MATCH(H88,#REF!,0)),"") ->  | R88: 2757992 | S88: الشاهين | T88: محمد عبيدو | U88: زاد | V88: زاد | W88: 1 | X88: 2254 | Y88: 2400 | Z88: 146
B89: =IFERROR(INDEX(#REF!,MATCH(C89,#REF!,0)),"") ->  | G89: =IFERROR(INDEX(#REF!,MATCH(H89,#REF!,0)),"") ->  | R89: 2128154 | S89: صالح فون | T89: سلمى السيد | U89: زاد | V89: زاد | W89: 1 | X89: 2254 | Y89: 2300 | Z89: 46
B90: =IFERROR(INDEX(#REF!,MATCH(C90,#REF!,0)),"") ->  | G90: =IFERROR(INDEX(#REF!,MATCH(H90,#REF!,0)),"") ->  | R90: 2783176 | S90: وسيم | T90: ميس شمعة | U90: زاد | V90: زاد | W90: 1 | X90: 2254 | Y90: 2350 | Z90: 96
B91: =IFERROR(INDEX(#REF!,MATCH(C91,#REF!,0)),"") ->  | G91: =IFERROR(INDEX(#REF!,MATCH(H91,#REF!,0)),"") ->  | R91: 2781785 | S91: وسيم | T91: فادي سليمان | U91: زاد | V91: زاد | W91: 512 | X91: 1666 | Y91: 1700 | Z91: 34
B92: =IFERROR(INDEX(#REF!,MATCH(C92,#REF!,0)),"") ->  | G92: =IFERROR(INDEX(#REF!,MATCH(H92,#REF!,0)),"") ->  | R92: 7750738 | S92: زاهر | T92: عبد الغني سعيد بالا | U92: زاد | V92: زاد | W92: 1 | X92: 2254 | Y92: 2300 | Z92: 46
B93: =IFERROR(INDEX(#REF!,MATCH(C93,#REF!,0)),"") ->  | G93: =IFERROR(INDEX(#REF!,MATCH(H93,#REF!,0)),"") ->  | R93: 4753231 | S93: رامز | T93: عادل سليمان | U93: زاد | V93: زاد | W93: 512 | X93: 1666 | Y93: 1750 | Z93: 84
B94: =IFERROR(INDEX(#REF!,MATCH(C94,#REF!,0)),"") ->  | G94: =IFERROR(INDEX(#REF!,MATCH(H94,#REF!,0)),"") ->  | R94: 4662467 | S94: زاهر | T94: منير جعيفر | U94: زاد | V94: زاد | W94: 1 | X94: 2254 | Y94: 2300 | Z94: 46
B95: =IFERROR(INDEX(#REF!,MATCH(C95,#REF!,0)),"") ->  | G95: =IFERROR(INDEX(#REF!,MATCH(H95,#REF!,0)),"") ->  | R95: 4662314 | S95: زاهر | T95: منذر الحداد | U95: زاد | V95: زاد | W95: 1 | X95: 2254 | Y95: 2300 | Z95: 46
B96: =IFERROR(INDEX(#REF!,MATCH(C96,#REF!,0)),"") ->  | G96: =IFERROR(INDEX(#REF!,MATCH(H96,#REF!,0)),"") ->  | R96: 2786897 | S96: ابو اسد | T96: مريم احمد | U96: زاد | V96: زاد | W96: 1 | X96: 2254 | Y96: 2300 | Z96: 46
B97: =IFERROR(INDEX(#REF!,MATCH(C97,#REF!,0)),"") ->  | G97: =IFERROR(INDEX(#REF!,MATCH(H97,#REF!,0)),"") ->  | R97: 7754811 | S97: زاهر | T97: محمد زغبي | U97: زاد | V97: زاد | W97: 1 | X97: 2254 | Y97: 2300 | Z97: 46
B98: =IFERROR(INDEX(#REF!,MATCH(C98,#REF!,0)),"") ->  | G98: =IFERROR(INDEX(#REF!,MATCH(H98,#REF!,0)),"") ->  | R98: 2755658 | S98: مؤيد | T98: حيدر رابعة | U98: زاد | V98: زاد | W98: 4 | X98: 5684 | Y98: 5800 | Z98: 116
B99: =IFERROR(INDEX(#REF!,MATCH(C99,#REF!,0)),"") ->  | G99: =IFERROR(INDEX(#REF!,MATCH(H99,#REF!,0)),"") ->  | R99: 2752462 | S99: مهند | T99: احمد داود | U99: زاد | V99: زاد | W99: 2 | X99: 3332 | Y99: 3400 | Z99: 68
B100: =IFERROR(INDEX(#REF!,MATCH(C100,#REF!,0)),"") ->  | G100: =IFERROR(INDEX(#REF!,MATCH(H100,#REF!,0)),"") ->  | R100: 2767631 | S100: وسيم | T100: احمد نوفل | U100: زاد | V100: زاد | W100: 2 | X100: 3532 | Y100: 3650 | Z100: 118
B101: =IFERROR(INDEX(#REF!,MATCH(C101,#REF!,0)),"") ->  | G101: =IFERROR(INDEX(#REF!,MATCH(H101,#REF!,0)),"") ->  | R101: 2764332 | S101: مهند | T101: ايمان قاروط | U101: زاد | V101: زاد | W101: 512 | X101: 1666 | Y101: 1700 | Z101: 34
B102: =IFERROR(INDEX(#REF!,MATCH(C102,#REF!,0)),"") ->  | G102: =IFERROR(INDEX(#REF!,MATCH(H102,#REF!,0)),"") ->  | R102: 2763518 | S102: ونوس | T102: زكريا ابراهيم | U102: زاد | V102: زاد | W102: 1 | X102: 2254 | Y102: 2400 | Z102: 146
B103: =IFERROR(INDEX(#REF!,MATCH(C103,#REF!,0)),"") ->  | G103: =IFERROR(INDEX(#REF!,MATCH(H103,#REF!,0)),"") ->  | R103: 2759301 | S103: هاني | T103: يوسف محمد | U103: ليزر | V103: ليزر | W103: 1 | X103: 2472 | Y103: 2500 | Z103: 28
B104: =IFERROR(INDEX(#REF!,MATCH(C104,#REF!,0)),"") ->  | G104: =IFERROR(INDEX(#REF!,MATCH(H104,#REF!,0)),"") ->  | R104: 2763097 | S104: ايمو | T104: محمد خضور | U104: ليزر | V104: ليزر | W104: 1 | X104: 2472 | Y104: 2600 | Z104: 128
B105: =IFERROR(INDEX(#REF!,MATCH(C105,#REF!,0)),"") ->  | G105: =IFERROR(INDEX(#REF!,MATCH(H105,#REF!,0)),"") ->  | R105: 2785908 | S105: هاني | T105: محمد عصفور | U105: ليزر | V105: ليزر | W105: 1 | X105: 2472 | Y105: 2500 | Z105: 28
B106: =IFERROR(INDEX(#REF!,MATCH(C106,#REF!,0)),"") ->  | G106: =IFERROR(INDEX(#REF!,MATCH(H106,#REF!,0)),"") ->  | R106: 2782085 | S106: احمد نجم | T106: حسن محمد علي | U106: ليزر | V106: ليزر | W106: 1 | X106: 2472 | Y106: 2600 | Z106: 128
R107: 2782985 | S107: هاني | T107: نجم الدين سلامة | U107: ليزر | V107: ليزر | W107: 1 | X107: 2472 | Y107: 2500 | Z107: 28
R108: 2783722 | S108: مختار | T108: علاء فانوس | U108: ليزر | V108: ليزر | W108: 2 | X108: 3502 | Y108: 3700 | Z108: 198
R109: 2138611 | S109: ياغي | T109: محمد بهادر | U109: ليزر | V109: ليزر | W109: 1 | X109: 2472 | Y109: 2500 | Z109: 28
R110: 2617509 | S110: حازم | T110: حسن اليوسف | U110: ليزر | V110: ليزر | W110: 1 | X110: 2472 | Y110: 2500 | Z110: 28
R111: 2756864 | S111: اسد | T111: علاء المحمد | U111: ليزر | V111: ليزر | W111: 1 | X111: 2472 | Y111: 2500 | Z111: 28
R112: 2711724 | S112: عقيل | T112: رانيا برهوم | U112: ليزر | V112: ليزر | W112: 1 | X112: 2472 | Y112: 2500 | Z112: 28
R113: 2616290 | S113: المنارة | T113: وسام ادريس | U113: ليزر | V113: ليزر | W113: 1 | X113: 2472 | Y113: 2600 | Z113: 128
R114: 2148500 | S114: هاني | T114: محمد بلول | U114: ليزر | V114: ليزر | W114: 2 | X114: 3502 | Y114: 3550 | Z114: 48
R115: 2766289 | S115: الشاهين | T115: ابراهيم الموسى | U115: ليزر | V115: ليزر | W115: 1 | X115: 2472 | Y115: 2600 | Z115: 128
R116: 2763730 | S116: مختار | T116: محمود حمود | U116: ليزر | V116: ليزر | W116: 1 | X116: 2472 | Y116: 2600 | Z116: 128
R117: 2710592 | S117: سعود | T117: اناهد احمد | U117: ليزر | V117: ليزر | W117: 1 | X117: 2472 | Y117: 2600 | Z117: 128
R118: 2764179 | S118: مختار | T118: محمد الحسن | U118: ليزر | V118: ليزر | W118: 1 | X118: 2472 | Y118: 2600 | Z118: 128
R119: 2782937 | S119: ميلودي | T119: احمد خضر | U119: ليزر | V119: ليزر | W119: 4 | X119: 5974 | Y119: 6100 | Z119: 126
R120: 2785856 | S120: صالح فون | T120: يحيى احمد | U120: ليزر | V120: ليزر | W120: 2 | X120: 3502 | Y120: 3550 | Z120: 48
R121: 2782467 | S121: السلوم | T121: سميرة محمد | U121: ليزر | V121: ليزر | W121: 1 | X121: 2472 | Y121: 2600 | Z121: 128
R122: 2763786 | S122: سعود | T122: هيفاء يونس | U122: ليزر | V122: ليزر | W122: 1 | X122: 2626.5 | Y122: 2750 | Z122: 123.5
R123: 2780156 | S123: الاهرام | T123: فداء دعيول | U123: ليزر | V123: ليزر | W123: 1 | X123: 2472 | Y123: 2600 | Z123: 128
R124: 2764267 | S124: نورس اورانج | T124: ديمة الرستم | U124: ليزر | V124: ليزر | W124: 512 | X124: 1751 | Y124: 1750 | Z124: -1
I125: حسن الريان | J125: 21950 | R125: 2147841 | S125: ياغي | T125: زياد ايوب | U125: ليزر | V125: ليزر | W125: 1 | X125: 2472 | Y125: 2500 | Z125: 28
I126: قعير | J126: 10010 | R126: 2760420 | S126: عقيل | T126: علي يونس | U126: ليزر | V126: ليزر | W126: 1 | X126: 2472 | Y126: 2500 | Z126: 28
I127: صبح | J127: 9631 | R127: 2710416 | S127: وسيم | T127: فتاة إسماعيل | U127: فيو | V127: فيو | W127: 1 | X127: 2460 | Y127: 2500 | Z127: 40
I128: 3225 | J128: ناصر | R128: 2775326 | S128: الاهرام | T128: عمار زيود | U128: فيو | V128: فيو | W128: 512 | X128: 1691.25 | Y128: 1750 | Z128: 58.75
I129: 5000 | J129: زين | R129: 2784248 | S129: السلوم | T129: سوزان الكسيح | U129: فيو | V129: فيو | W129: 512 | X129: 1691.25 | Y129: 1750 | Z129: 58.75
I130: 1500 | J130: فهيم | R130: 2787467 | S130: السلوم | T130: محمد السلوم | U130: فيو | V130: فيو | W130: 2 | X130: 3485 | Y130: 3600 | Z130: 115
I131: 8150 | J131: آبل فون | R131: 2766950 | S131: السلوم | T131: عبد الكريم الكسيح | U131: فيو | V131: فيو | W131: 1 | X131: 2460 | Y131: 2500 | Z131: 40
I132: محسن علي | J132: 6600 | R132: 2781609 | S132: نورس اورانج | T132: ربا الابراهيم | U132: فيو | V132: فيو | W132: 1 | X132: 2460 | Y132: 2500 | Z132: 40
I133: الكابتن | J133: 5250 | R133: 2752320 | S133: ميلودي | T133: اعتدال علي | U133: سما | V133: سما | W133: 512 | X133: 1732.5 | Y133: 1750 | Z133: 17.5 | AB133: =SUM(AB11:AB132) -> 91197
I134: هاني | J134: 5400 | R134: 2755580 | S134: هاني | T134: همام مسا | U134: سما | V134: سما | W134: 512 | X134: 1732.5 | Y134: 1750 | Z134: 17.5
I135: عارف | J135: 5350 | R135: 2757916 | S135: هاني | T135: نوح خليل | U135: سما | V135: سما | W135: 512 | X135: 1732.5 | Y135: 1750 | Z135: 17.5
R136: 2772539 | S136: ابو اسد | T136: سليمان حمود | U136: سما | V136: سما | W136: 1 | X136: 2415 | Y136: 2500 | Z136: 85
I137: حساب عامر | J137: 290872.25 | R137: 2752543 | S137: ايمو | T137: اياد قرميد | U137: سما | V137: سما | W137: 512 | X137: 1732.5 | Y137: 1750 | Z137: 17.5
R138: 2758119 | S138: علي رمضان | T138: حسان قنص | U138: ليما | V138: ليما | W138: 512 | X138: 1700 | Y138: 1750 | Z138: 50
R139: 2772854 | S139: ميلودي | T139: حسيبة حمود | U139: ليما | V139: ليما | W139: 512 | X139: 1700 | Y139: 1750 | Z139: 50
R140: 2710206 | S140: اسد | T140: وسيم محمد | U140: ليما | V140: ليما | W140: 1 | X140: 2400 | Y140: 2500 | Z140: =IF(Y140="","",Y140-X140) -> 100
R141: 2757261 | S141: ميلودي | T141: ميادة الوعري | U141: ليما | V141: ليما | W141: 1 | X141: 2400 | Y141: 2500 | Z141: 100
R142: 2781730 | S142: ميلودي | T142: وفاء حلاق | U142: ليما | V142: ليما | W142: 1 | X142: 2400 | Y142: 2500 | Z142: 100
R143: 2784985 | S143: صالح فون | T143: ندى العطار | U143: ليما | V143: ليما | W143: 1 | X143: 2400 | Y143: 2500 | Z143: 100
R144: 2764350 | S144: اسد | T144: محمد نعمان | U144: ليما | V144: ليما | W144: 1 | X144: 2400 | Y144: 2500 | Z144: 100
R145: 7484970 | S145: السلوم | T145: احمد ادريس | U145: ليما | V145: ليما | W145: 1 | X145: 2400 | Y145: 2500 | Z145: 100
R146: 2753106 | S146: ديل | T146: ناجح ابراهيم | U146: MTS | V146: MTS | W146: 1 | X146: 2400 | Y146: 2500 | Z146: 100
R147: 2768967 | S147: ونوس | T147: سامي مقديد | U147: MTS | V147: MTS | W147: 1 | X147: 2400 | Y147: 2500 | Z147: 100
R148: 2616930 | S148: سعد | T148: نور اليوسف | U148: MTS | V148: MTS | W148: 1 | X148: 2400 | Y148: 2450 | Z148: 50
R149: 5991181 | S149: سعد | T149: فاطمة كومي | U149: MTS | V149: MTS | W149: 1 | X149: 2400 | Y149: 2450 | Z149: 50
R150: 2788362 | S150: اسد | T150: مادلين شنبور | U150: MTS | V150: MTS | W150: 512 | X150: 1800 | Y150: 1800 | Z150: 0
R151: 2641311 | S151: سعد | T151: طوني خرما | U151: MTS | V151: MTS | W151: 512 | X151: 1800 | Y151: 1800 | Z151: 0
R152: 2627902 | S152: هوت لاين | T152: غانيه فارس | U152: MTS | V152: MTS | W152: 512 | X152: 1800 | Y152: 1800 | Z152: 0
R153: 2623602 | S153: ياغي | T153: خصر عيد | U153: زكوان | V153: سوا | W153: 512 | X153: 1650 | Y153: 1675 | Z153: 25
R154: 2759138 | S154: سعود | T154: هبة خضور | U154: زاهر | V154: امنية | W154: 1 | X154: 2300 | Y154: 2400 | Z154: 100
R155: 2773597 | S155: ابو اسد | T155: محمود حجو | U155: زكوان | V155: امنية | W155: 1 | X155: 2300 | Y155: 2400 | Z155: 100
R156: 7755014 | S156: يونس ناصر | T156: احمد حسامي | U156: زكوان | V156: امنية | W156: 512 | X156: 1700 | Y156: 1750 | Z156: 50
R157: 2619637 | S157: ياغي | T157: هالة عطية | U157: زكوان | V157: امنية | W157: 1 | X157: 2300 | Y157: 2350 | Z157: 50
R158: 2763348 | S158: نائل | T158: رفعت كفا | U158: زكوان | V158: امنية | W158: 512 | X158: 1700 | Y158: 1750 | Z158: 50
R159: 2755011 | S159: ياغي | T159: عبد المجيد يوسف | U159: زكوان | V159: امنية | W159: 4 | X159: 5800 | Y159: 5900 | Z159: 100
R160: 2760553 | S160: فهد | T160: معن الساحلي | U160: زكوان | V160: امنية | W160: 1 | X160: 2300 | Y160: 2400 | Z160: 100
R161: 2769971 | S161: صالح فون | T161: حسام العلي | U161: زكوان | V161: امنية | W161: 1 | X161: 2300 | Y161: 2350 | Z161: 50
R162: 2762529 | S162: سبيسيال | T162: محمد سلامة | U162: زكوان | V162: امنية | W162: 1 | X162: 2300 | Y162: 2400 | Z162: 100
R163: 2475582 | S163: زكوان | T163: سلام الاخوان | U163: سما | V163: سما | W163: 512 | X163: 1732.5 | Y163: 1750 | Z163: 17.5
R164: 2771007 | S164: ياغي | T164: هيثم ديب | U164: سما | V164: سما | W164: 512 | X164: 1732.5 | Y164: 1750 | Z164: 17.5
R165: 2646898 | S165: عزام | T165: عيسى بدران | U165: سما | V165: سما | W165: 512 | X165: 1732.5 | Y165: 1750 | Z165: 17.5
R166: 2768609 | S166: احمد نجم | T166: سلوى بلال | U166: زاهر | V166: اي نت | W166: 1 | X166: 2300 | Y166: 2400 | Z166: 100
R167: 4758138 | S167: رامز | T167: علي العلي | U167: زاهر | V167: سوا | W167: 512 | X167: 1650 | Y167: 1750 | Z167: 100
R168: 2759737 | S168: ديل | T168: باسل جبر | U168: زاهر | V168: رن نت | W168: 1 | X168: 2375 | Y168: 2450 | Z168: 75
R169: 2769373 | S169: ابو اسد | T169: محسن سرحان | U169: زاهر | V169: لاي نت | W169: 1 | X169: 4000 | Y169: 4000 | Z169: 0
R170: 2641818 | S170: فهد المحمد | T170: سمر صبرة | U170: زاهر | V170: اي نت | W170: 1 | X170: 4000 | Y170: 4200 | Z170: 200
R171: 2761852 | S171: فهد المحمد | T171: نورة سليمان | U171: زاهر | V171: اي نت | W171: 1 | X171: 2300 | Y171: 2400 | Z171: 100
R172: 2755917 | S172: السلوم | T172: نجود المحمد | U172: زاهر | V172: اي نت | W172: 512 | X172: 1700 | Y172: 1750 | Z172: 50
R173: 2788492 | S173: ياغي | T173: رشا علي | U173: زاهر | V173: جمعية | W173: 1 | X173: 2400 | Y173: 2450 | Z173: 50
R174: 2753251 | S174: سعد | T174: ابراهيم الشعبان | U174: زاهر | V174: اية | W174: 512 | X174: 1700 | Y174: 1725 | Z174: 25
R175: 2763083 | S175: سعد | T175: اولفات معطي | U175: زاد | V175: زاد | W175: 1 | X175: 2254 | Y175: 2300 | Z175: 46
R176: 2615682 | S176: سعد | T176: بشار اسماعيل | U176: ليزر | V176: ليزر | W176: 1 | X176: 2472 | Y176: 2500 | Z176: 28
R177: 2759792 | S177: صالح فون | T177: احمد الخضور | U177: زاد | V177: زاد | W177: 2 | X177: 3332 | Y177: 3400 | Z177: 68
R178: 2761030 | S178: ونوس | T178: علي شعبان | U178: زاهر | V178: اي نت | W178: 1 | X178: 2300 | Y178: 2400 | Z178: 100
R179: 2756506 | S179: فهد | T179: منى حمدان | U179: زاهر | V179: رن نت | W179: 1 | X179: 2375 | Y179: 2450 | Z179: 75
R180: 2754776 | S180: سعود | T180: سامر مربعي | U180: زكوان | V180: امنية | W180: 1 | X180: 2300 | Y180: 2400 | Z180: 100
R181: 2769718 | S181: سعود | T181: يحيى علي | U181: زاهر | V181: ناس | W181: 1 | X181: 2300 | Y181: 2400 | Z181: 100
R182: 2785017 | S182: ايمن شحود | T182: سالم شحود | U182: زاهر | V182: جمعية | W182: 2 | X182: 3350 | Y182: 3000 | Z182: -350
R183: 2711547 | S183: نورس اورانج | T183: عمار الياسين | U183: زاهر | V183: ناس | W183: 512 | X183: 1650 | Y183: 1750 | Z183: 100
R184: 2711546 | S184: نورس اورانج | T184: عمار الياسين | U184: زاهر | V184: ناس | W184: 2 | X184: 3400 | Y184: 3500 | Z184: 100
R185: 2762132 | S185: هاني | T185: سامية زليق | U185: ليزر | V185: ليزر | W185: 1 | X185: 2472 | Y185: 2500 | Z185: 28
R186: 2762168 | S186: هاني | T186: عيسى النيساني | U186: زاهر | V186: تكامل | W186: 1 | X186: 2200 | Y186: 2250 | Z186: 50
R187: 2773594 | S187: عجلون | T187: ختام خضور | U187: زاهر | V187: ليزر | W187: 1 | X187: 2460 | Y187: 2600 | Z187: 140
R188: 2765952 | S188: الدبس | T188: يعرب الدبس | U188: زاهر | V188: ليزر | W188: 1 | X188: 2460 | Y188: 2600 | Z188: 140
S189: =IFERROR(INDEX(#REF!,MATCH(R189,#REF!,0)),"") ->  | T189: =IFERROR(INDEX(#REF!,MATCH(R189,#REF!,0)),"") ->  | V189: =IFERROR(INDEX(#REF!,MATCH(R189,#REF!,0)),"") ->  | W189: =IFERROR(INDEX(#REF!,MATCH(R189,#REF!,0)),"") ->  | X189: =IF($R189="","",IF(SUMPRODUCT((#REF!=$U189)*(#REF!=$V189)*(#REF!=$W189)*(ROW($4:$1032)-3))=0,0,INDEX(#REF!,SUMPRODUCT((#REF!=$U189)*(#REF!=$V189)*(#REF!=$W189)*(ROW($4:$1032)-3))))) ->  | Y189: =IFERROR(INDEX(#REF!,MATCH(R189,#REF!,0)),"") -> 
S190: =IFERROR(INDEX(#REF!,MATCH(R190,#REF!,0)),"") ->  | T190: =IFERROR(INDEX(#REF!,MATCH(R190,#REF!,0)),"") ->  | V190: =IFERROR(INDEX(#REF!,MATCH(R190,#REF!,0)),"") ->  | W190: =IFERROR(INDEX(#REF!,MATCH(R190,#REF!,0)),"") ->  | X190: =IF($R190="","",IF(SUMPRODUCT((#REF!=$U190)*(#REF!=$V190)*(#REF!=$W190)*(ROW($4:$1032)-3))=0,0,INDEX(#REF!,SUMPRODUCT((#REF!=$U190)*(#REF!=$V190)*(#REF!=$W190)*(ROW($4:$1032)-3))))) ->  | Y190: =IFERROR(INDEX(#REF!,MATCH(R190,#REF!,0)),"") -> 
S191: =IFERROR(INDEX(#REF!,MATCH(R191,#REF!,0)),"") ->  | T191: =IFERROR(INDEX(#REF!,MATCH(R191,#REF!,0)),"") ->  | V191: =IFERROR(INDEX(#REF!,MATCH(R191,#REF!,0)),"") ->  | W191: =IFERROR(INDEX(#REF!,MATCH(R191,#REF!,0)),"") ->  | X191: =IF($R191="","",IF(SUMPRODUCT((#REF!=$U191)*(#REF!=$V191)*(#REF!=$W191)*(ROW($4:$1032)-3))=0,0,INDEX(#REF!,SUMPRODUCT((#REF!=$U191)*(#REF!=$V191)*(#REF!=$W191)*(ROW($4:$1032)-3))))) ->  | Y191: =IFERROR(INDEX(#REF!,MATCH(R191,#REF!,0)),"") -> 
S192: =IFERROR(INDEX(#REF!,MATCH(R192,#REF!,0)),"") ->  | T192: =IFERROR(INDEX(#REF!,MATCH(R192,#REF!,0)),"") ->  | V192: =IFERROR(INDEX(#REF!,MATCH(R192,#REF!,0)),"") ->  | W192: =IFERROR(INDEX(#REF!,MATCH(R192,#REF!,0)),"") ->  | X192: =IF($R192="","",IF(SUMPRODUCT((#REF!=$U192)*(#REF!=$V192)*(#REF!=$W192)*(ROW($4:$1032)-3))=0,0,INDEX(#REF!,SUMPRODUCT((#REF!=$U192)*(#REF!=$V192)*(#REF!=$W192)*(ROW($4:$1032)-3))))) ->  | Y192: =IFERROR(INDEX(#REF!,MATCH(R192,#REF!,0)),"") -> 
S193: =IFERROR(INDEX(#REF!,MATCH(R193,#REF!,0)),"") ->  | T193: =IFERROR(INDEX(#REF!,MATCH(R193,#REF!,0)),"") ->  | V193: =IFERROR(INDEX(#REF!,MATCH(R193,#REF!,0)),"") ->  | W193: =IFERROR(INDEX(#REF!,MATCH(R193,#REF!,0)),"") ->  | X193: =IF($R193="","",IF(SUMPRODUCT((#REF!=$U193)*(#REF!=$V193)*(#REF!=$W193)*(ROW($4:$1032)-3))=0,0,INDEX(#REF!,SUMPRODUCT((#REF!=$U193)*(#REF!=$V193)*(#REF!=$W193)*(ROW($4:$1032)-3))))) ->  | Y193: =IFERROR(INDEX(#REF!,MATCH(R193,#REF!,0)),"") -> 
S194: =IFERROR(INDEX(#REF!,MATCH(R194,#REF!,0)),"") ->  | T194: =IFERROR(INDEX(#REF!,MATCH(R194,#REF!,0)),"") ->  | V194: =IFERROR(INDEX(#REF!,MATCH(R194,#REF!,0)),"") ->  | W194: =IFERROR(INDEX(#REF!,MATCH(R194,#REF!,0)),"") ->  | X194: =IF($R194="","",IF(SUMPRODUCT((#REF!=$U194)*(#REF!=$V194)*(#REF!=$W194)*(ROW($4:$1032)-3))=0,0,INDEX(#REF!,SUMPRODUCT((#REF!=$U194)*(#REF!=$V194)*(#REF!=$W194)*(ROW($4:$1032)-3))))) ->  | Y194: =IFERROR(INDEX(#REF!,MATCH(R194,#REF!,0)),"") -> 
S195: =IFERROR(INDEX(#REF!,MATCH(R195,#REF!,0)),"") ->  | T195: =IFERROR(INDEX(#REF!,MATCH(R195,#REF!,0)),"") ->  | V195: =IFERROR(INDEX(#REF!,MATCH(R195,#REF!,0)),"") ->  | W195: =IFERROR(INDEX(#REF!,MATCH(R195,#REF!,0)),"") ->  | X195: =IF($R195="","",IF(SUMPRODUCT((#REF!=$U195)*(#REF!=$V195)*(#REF!=$W195)*(ROW($4:$1032)-3))=0,0,INDEX(#REF!,SUMPRODUCT((#REF!=$U195)*(#REF!=$V195)*(#REF!=$W195)*(ROW($4:$1032)-3))))) ->  | Y195: =IFERROR(INDEX(#REF!,MATCH(R195,#REF!,0)),"") -> 
S196: =IFERROR(INDEX(#REF!,MATCH(R196,#REF!,0)),"") ->  | T196: =IFERROR(INDEX(#REF!,MATCH(R196,#REF!,0)),"") ->  | V196: =IFERROR(INDEX(#REF!,MATCH(R196,#REF!,0)),"") ->  | W196: =IFERROR(INDEX(#REF!,MATCH(R196,#REF!,0)),"") ->  | X196: =IF($R196="","",IF(SUMPRODUCT((#REF!=$U196)*(#REF!=$V196)*(#REF!=$W196)*(ROW($4:$1032)-3))=0,0,INDEX(#REF!,SUMPRODUCT((#REF!=$U196)*(#REF!=$V196)*(#REF!=$W196)*(ROW($4:$1032)-3))))) ->  | Y196: =IFERROR(INDEX(#REF!,MATCH(R196,#REF!,0)),"") -> 
S197: =IFERROR(INDEX(#REF!,MATCH(R197,#REF!,0)),"") ->  | T197: =IFERROR(INDEX(#REF!,MATCH(R197,#REF!,0)),"") ->  | V197: =IFERROR(INDEX(#REF!,MATCH(R197,#REF!,0)),"") ->  | W197: =IFERROR(INDEX(#REF!,MATCH(R197,#REF!,0)),"") ->  | X197: =IF($R197="","",IF(SUMPRODUCT((#REF!=$U197)*(#REF!=$V197)*(#REF!=$W197)*(ROW($4:$1032)-3))=0,0,INDEX(#REF!,SUMPRODUCT((#REF!=$U197)*(#REF!=$V197)*(#REF!=$W197)*(ROW($4:$1032)-3))))) ->  | Y197: =IFERROR(INDEX(#REF!,MATCH(R197,#REF!,0)),"") -> 
S198: =IFERROR(INDEX(#REF!,MATCH(R198,#REF!,0)),"") ->  | T198: =IFERROR(INDEX(#REF!,MATCH(R198,#REF!,0)),"") ->  | V198: =IFERROR(INDEX(#REF!,MATCH(R198,#REF!,0)),"") ->  | W198: =IFERROR(INDEX(#REF!,MATCH(R198,#REF!,0)),"") ->  | X198: =IF($R198="","",IF(SUMPRODUCT((#REF!=$U198)*(#REF!=$V198)*(#REF!=$W198)*(ROW($4:$1032)-3))=0,0,INDEX(#REF!,SUMPRODUCT((#REF!=$U198)*(#REF!=$V198)*(#REF!=$W198)*(ROW($4:$1032)-3))))) ->  | Y198: =IFERROR(INDEX(#REF!,MATCH(R198,#REF!,0)),"") -> 
S199: =IFERROR(INDEX(#REF!,MATCH(R199,#REF!,0)),"") ->  | T199: =IFERROR(INDEX(#REF!,MATCH(R199,#REF!,0)),"") ->  | V199: =IFERROR(INDEX(#REF!,MATCH(R199,#REF!,0)),"") ->  | W199: =IFERROR(INDEX(#REF!,MATCH(R199,#REF!,0)),"") ->  | X199: =IF($R199="","",IF(SUMPRODUCT((#REF!=$U199)*(#REF!=$V199)*(#REF!=$W199)*(ROW($4:$1032)-3))=0,0,INDEX(#REF!,SUMPRODUCT((#REF!=$U199)*(#REF!=$V199)*(#REF!=$W199)*(ROW($4:$1032)-3))))) ->  | Y199: =IFERROR(INDEX(#REF!,MATCH(R199,#REF!,0)),"") -> 
S200: =IFERROR(INDEX(#REF!,MATCH(R200,#REF!,0)),"") ->  | T200: =IFERROR(INDEX(#REF!,MATCH(R200,#REF!,0)),"") ->  | V200: =IFERROR(INDEX(#REF!,MATCH(R200,#REF!,0)),"") ->  | W200: =IFERROR(INDEX(#REF!,MATCH(R200,#REF!,0)),"") ->  | X200: =IF($R200="","",IF(SUMPRODUCT((#REF!=$U200)*(#REF!=$V200)*(#REF!=$W200)*(ROW($4:$1032)-3))=0,0,INDEX(#REF!,SUMPRODUCT((#REF!=$U200)*(#REF!=$V200)*(#REF!=$W200)*(ROW($4:$1032)-3))))) ->  | Y200: =IFERROR(INDEX(#REF!,MATCH(R200,#REF!,0)),"") -> 
S201: =IFERROR(INDEX(#REF!,MATCH(R201,#REF!,0)),"") ->  | T201: =IFERROR(INDEX(#REF!,MATCH(R201,#REF!,0)),"") ->  | V201: =IFERROR(INDEX(#REF!,MATCH(R201,#REF!,0)),"") ->  | W201: =IFERROR(INDEX(#REF!,MATCH(R201,#REF!,0)),"") ->  | X201: =IF($R201="","",IF(SUMPRODUCT((#REF!=$U201)*(#REF!=$V201)*(#REF!=$W201)*(ROW($4:$1032)-3))=0,0,INDEX(#REF!,SUMPRODUCT((#REF!=$U201)*(#REF!=$V201)*(#REF!=$W201)*(ROW($4:$1032)-3))))) ->  | Y201: =IFERROR(INDEX(#REF!,MATCH(R201,#REF!,0)),"") -> 
... 99 more rows
